[Event "AI Cup Div-2 2023"]
[Site "Online"]
[Date "2023.09.26"]
[Round "2.1"]
[White "Caruana, Fabiano"]
[Black "Sarana, Alexey"]
[Result "1-0"]
[ECO "E05"]
[WhiteElo "2786"]
[BlackElo "2693"]
[Annotator "TA"]
[PlyCount "107"]
[EventDate "2023.09.18"]
[EventType "k.o."]
[EventCountry "NET"]
[SourceTitle "playchess.com"]
[Source "ChessBase"]
[SourceQuality "1"]
[TimeControl "900+3"]

{[%evp 16,107,11,17,46,33,56,24,63,60,63,44,55,58,66,47,61,60,60,66,81,42,53,27,106,106,147,157,277,266,409,408,385,352,603,596,390,106,856,836,1066,1060,942,718,1291,1258,1581,1524,29985,1395,1308,1340,1725,1732,1403,1012,956,783,768,746,712,460,729,604,784,783,762,741,1001,601,589,593,978,631,1396,0,796,0,1165,758,29984,29985,29985,29985,29982,29976,29997,29997,29998,29993,29993,29994,29994,29995]} 1. Nf3 {[%emt 0:00:16]} d5 {[%emt 0:00:06]} 2. c4 {[%emt 0:00:02]} e6 {[%emt 0:00:02]} 3. g3 {[%emt 0:00:02]} Nf6 {[%emt 0:00:02]} 4. Bg2 {[%emt 0:00:01]} Be7 {[%emt 0:00:02]} 5. O-O {[%emt 0:00:02]} O-O {[%emt 0:00:01]} 6. d4 {[%emt 0:00:01]} dxc4 {[%emt 0:00:04]} 7. Qc2 {[%emt 0:00:01]} a6 {[%emt 0:00:02]} 8. a4 {[%emt 0:00:06]} Bd7 {[%emt 0:00:03]} 9. Qxc4 {[%emt 0:00:02]} b5 {[%emt 0:00:05] E05: Open Catalan: 5 Nf3 Be7.} 10. Qc2 {[%emt 0:00:45]} Nc6 {[%emt 0:00:01]} 11. Bd2 {[%emt 0:00:14] [#]} Nd5 $146 {[%emt 0:00:03] White has an edge.} ({Predecessor:} 11... Nb4 12. Bxb4 Bxb4 13. Ne5 Rb8 14. axb5 Bxb5 15. Rd1 c5 16. Nc3 cxd4 17. Nxb5 Rxb5 {0-1 Chigaev,M (2617)-Sarana,A (2685) Singapore Olympic Esports Final blitz 2023 (2.2)}) 12. Nc3 {[%emt 0:00:39]} Ncb4 {[%emt 0:01:05]} 13. Qc1 {[%emt 0:00:03]} bxa4 {[%emt 0:00:06]} 14. Nxa4 {[%emt 0:00:25]} Bb5 {[%emt 0:01:58]} 15. Re1 {[%emt 0:00:03]} (15. Nc3 $5 {[%cal Rc3b5]}) 15... a5 {[%emt 0:00:03]} 16. Nc5 {[%emt 0:00:19]} c6 {[%emt 0:00:05]} 17. Ne5 {[%emt 0:00:31]} Qc7 {[%emt 0:00:09]} 18. h4 {[%emt 0:01:55]} Rfd8 {[%emt 0:00:58]} 19. Ra3 {[%emt 0:00:25]} Bf6 {[%emt 0:00:51] [#]} (19... Nb6 $11 {remains equal.}) 20. Bg5 $1 $16 {[%emt 0:00:43] White is much more active. White now steadily converts the win.} Qe7 {[%emt 0:00:49]} 21. e4 {[%emt 0:02:07]} Nb6 {[%emt 0:02:19]} (21... Nc7 $16 {was worth a try.}) 22. Rf3 {[%emt 0:03:16] Bxf6 is the strong threat.} Rxd4 {[%emt 0:00:12] [#]} (22... Na2 {was called for.} 23. Qf4 Bxg5 24. hxg5 Nc4 25. Qxf7+ (25. Nxf7 Rf8 $14) 25... Qxf7 26. Nxf7 Rf8) 23. Bxf6 $1 $18 {[%emt 0:00:02]} gxf6 {[%emt 0:00:00]} 24. Ng4 {[%emt 0:00:01][%cal Be5g4,Bg4h6,Bh6f7][%mdl 32]} f5 {[%emt 0:00:07]} (24... N6d5 25. Nh6+ Kh8) 25. Nh6+ {[%emt 0:00:09]} Kh8 {[%emt 0:00:02]} 26. Qc3 {[%emt 0:00:43]} (26. exf5 $18 {has better winning chances.} Rc4 27. Qd2) 26... Rad8 $2 {[%emt 0:02:25][%mdl 8192]} (26... f6 $16 27. b3 (27. Qxd4 Nc2 $14) 27... Nd7 28. Qxd4 Nxc5) 27. exf5 {[%emt 0:00:05]} e5 {[%emt 0:00:00] [#]} 28. Rxe5 $3 {[%emt 0:00:45][%mdl 576] Decoy} Qf6 {[%emt 0:01:26] [#]} 29. Ne6 $1 {[%emt 0:01:15][%mdl 576] Double Attack} Na4 {[%emt 0:01:43]} (29... Rd1+ 30. Kh2) 30. Nxf7+ {[%emt 0:00:13]} (30. Nxd4 $2 Nxc3 31. bxc3 Qxh6 $19) 30... Kg8 {[%emt 0:00:17]} 31. Qe3 {[%emt 0:00:31][%cal Oe6d8]} ({Less strong is} 31. Nfxd8 Nxc3 32. Nxd4 Ne2+ 33. Nxe2 (33. Rxe2 Bxe2 34. Nxe2 Qxd8 $14) 33... Qxe5 $16) ({Worse is} 31. Qxd4 Rxd4 32. Nxd4 Kxf7 $11) 31... Kxf7 {[%emt 0:00:41]} 32. Nxd4 {[%emt 0:00:16]} (32. Nxd8+ $142 Rxd8 33. Re6 Qd4 34. Re7+ Kf8 35. Re8+ {[%mdl 64] Deflection} Rxe8 36. Qxd4 Nd5 37. Qh8+ Ke7 38. f6+ Kd8 39. Qg7 Re1+ 40. Kh2) 32... Nd5 {[%emt 0:00:10]} 33. Qe1 {[%emt 0:00:05]} Nxb2 {[%emt 0:00:09]} 34. Nxb5 {[%emt 0:00:02]} cxb5 {[%emt 0:00:02]} 35. Rb3 {[%emt 0:00:06]} Nb4 {[%emt 0:00:07]} 36. Rxb2 {[%emt 0:00:19] Threatening mate with Rbe2.} Nd3 {[%emt 0:00:03]} 37. Qxa5 {[%emt 0:00:01] Intending Qc7+ and mate.} Nxe5 {[%emt 0:00:06]} 38. Be4 {[%emt 0:00:15]} Ng4 {[%emt 0:00:22]} (38... Nc4 $142 39. Qa7+ (39. Qxb5 $2 {is the wrong capture.} Nxb2 40. Bc2 Kg7 $19) 39... Qe7 40. Qxe7+ Kxe7) 39. Qxb5 {[%emt 0:00:06]} Qd4 {[%emt 0:00:04]} 40. Bf3 {[%emt 0:00:04]} Ne5 {[%emt 0:00:04]} 41. Be2 {[%emt 0:00:01]} Rd7 {[%emt 0:00:06]} 42. Qb3+ {[%emt 0:00:03]} Kg7 {[%emt 0:00:01]} 43. Rc2 {[%emt 0:00:02] Black must now prevent Qe6.} Qe4 {[%emt 0:00:03]} 44. Qc3 {[%emt 0:00:05] And now f4 would win.} Kf7 {[%emt 0:00:01]} 45. Qb3+ {[%emt 0:00:01]} Kg7 {[%emt 0:00:01]} 46. Qc3 {[%emt 0:00:00]} Kf7 $1 {[%emt 0:00:01]} 47. Rb2 {[%emt 0:00:03] aiming for f4.} Ra7 {[%emt 0:00:08]} 48. Bh5+ {[%emt 0:00:02] White mates.} Kg7 {[%emt 0:00:01]} 49. Re2 {[%emt 0:00:02]} Qb1+ {[%emt 0:00:08]} 50. Kh2 {[%emt 0:00:04]} Ra1 {[%emt 0:00:03]} 51. Qxe5+ {[%emt 0:00:01]} Kh6 {[%emt 0:00:00]} 52. Bf3 {[%emt 0:00:04][%cal Re5f6]} Qg1+ {[%emt 0:00:01]} 53. Kh3 {[%emt 0:00:00][%cal Re5f6]} Qf1+ {[%emt 0:00:06]} 54. Bg2 {[%emt 0:00:02] Beautiful play by Caruana!   Weighted Error Value: White=0.49/Black=0.85} 1-0

[Event "AI Cup Div-2 2023"]
[Site "Online"]
[Date "2023.09.26"]
[Round "2.1"]
[White "Andreikin, Dmitry"]
[Black "Dominguez Perez, Leinier"]
[Result "1/2-1/2"]
[ECO "A36"]
[WhiteElo "2729"]
[BlackElo "2745"]
[Annotator "TA"]
[PlyCount "61"]
[EventDate "2023.09.18"]
[EventType "k.o."]
[EventCountry "NET"]
[SourceTitle "playchess.com"]
[Source "ChessBase"]
[SourceQuality "1"]
[TimeControl "900+3"]

{[%evp 19,61,10,0,0,6,-13,5,0,10,14,9,-5,-5,-6,0,0,0,0,0,0,0,0,0,0,6,6,7,6,7,7,7,0,0,0,0,-77,0,0,0,-57,0,0,0,-61]} 1. c4 {[%emt 0:00:05]} c5 {[%emt 0:00:06]} 2. g3 {[%emt 0:00:06]} g6 {[%emt 0:00:02]} 3. Bg2 {[%emt 0:00:02]} Bg7 {[%emt 0:00:00]} 4. Nc3 {[%emt 0:00:02]} Nc6 {[%emt 0:00:01]} 5. Nf3 {[%emt 0:00:03]} e6 {[%emt 0:00:08]} 6. O-O {[%emt 0:00:09]} Nge7 {[%emt 0:00:03]} 7. e3 {[%emt 0:00:04]} O-O {[%emt 0:00:17]} 8. d4 {[%emt 0:00:02]} cxd4 {[%emt 0:00:02]} 9. Nxd4 {[%emt 0:00:05]} d5 {[%emt 0:00:07]} 10. cxd5 {[%emt 0:00:06]} Nxd5 {[%emt 0:00:16]} 11. h4 {[%emt 0:03:04] A36: Symmetrical English vs ...g6: 4 Bg2 Bg7.} h5 {[%emt 0:02:27] [#]} 12. Qb3 $146 {[%emt 0:01:43]} ({Predecessor:} 12. Nxd5 exd5 13. Qb3 a5 14. a4 Nxd4 15. exd4 Ra6 16. Be3 Be6 17. Qb5 Qb6 18. Bxd5 Bxd5 19. Qxd5 Rd8 20. Qe4 Bxd4 21. Rad1 Bxe3 22. Qxe3 Qf6 23. Rxd8+ {½-½ Darmanto,H (2237)-Prakash,O (2425) Afroasian-ch20 sf-C email 2020}) 12... Qb6 {[%emt 0:02:07]} 13. Bxd5 {[%emt 0:02:32]} exd5 {[%emt 0:00:38]} 14. Qxb6 {[%emt 0:00:05]} axb6 {[%emt 0:00:01]} 15. Nxd5 {[%emt 0:00:01] Excellent horsemanship.} Bh3 {[%emt 0:01:10]} 16. Re1 {[%emt 0:02:17]} Bxd4 {[%emt 0:01:26]} 17. exd4 {[%emt 0:00:02]} Nxd4 {[%emt 0:00:00] [#] aiming for ...Nf3+.} 18. Rd1 {[%emt 0:00:17]} Nb3 {[%emt 0:02:39]} 19. Bh6 {[%emt 0:00:56]} Nxa1 {[%emt 0:00:08]} 20. Bxf8 {[%emt 0:01:08]} Kxf8 {[%emt 0:00:53]} 21. Rxa1 $11 {[%emt 0:00:02][%mdl 4096] Endgame KRB-KRN} b5 {[%emt 0:02:16]} 22. Nc7 {[%emt 0:01:12]} Ra5 {[%emt 0:00:03]} 23. b4 {[%emt 0:00:03]} Ra4 {[%emt 0:00:02]} 24. a3 {[%emt 0:00:02]} Bd7 {[%emt 0:00:02]} 25. Nd5 {[%emt 0:00:05] [#] Hoping for Nb6.} Bc6 {[%emt 0:00:10]} 26. Nc3 {[%emt 0:00:21]} Ra8 {[%emt 0:00:01]} 27. f4 {[%emt 0:00:11]} (27. Kf1 $11 {remains equal.}) 27... Rd8 {[%emt 0:00:08]} 28. Rd1 {[%emt 0:00:03] Repels Rd2} Ra8 {[%emt 0:00:02]} 29. Ra1 {[%emt 0:00:10]} Rd8 {[%emt 0:00:06]} 30. Rd1 {[%emt 0:00:08] Repels Rd2} Ra8 {[%emt 0:00:02]} 31. Ra1 {[%emt 0:00:11] An uneventful encounter.   Weighted Error Value: White=0.08 (flawless) /Black=0.09 (flawless)} 1/2-1/2

[Event "AI Cup Div-2 2023"]
[Site "Online"]
[Date "2023.09.26"]
[Round "2.1"]
[White "Duda, Jan-Krzysztof"]
[Black "Artemiev, Vladislav"]
[Result "1/2-1/2"]
[ECO "C54"]
[WhiteElo "2726"]
[BlackElo "2697"]
[Annotator "TA"]
[PlyCount "125"]
[EventDate "2023.09.18"]
[EventType "k.o."]
[EventCountry "NET"]
[SourceTitle "playchess.com"]
[Source "ChessBase"]
[SourceQuality "1"]
[TimeControl "900+3"]

{[%evp 12,125,17,6,20,11,27,19,16,8,27,-12,0,0,0,0,0,0,0,-8,2,2,8,8,16,13,13,25,22,0,0,0,29,0,0,0,0,-12,-15,-26,-44,-32,-34,-76,-69,-61,-14,-37,-37,-44,-37,-37,-44,-44,-44,-44,-44,-45,-39,-35,-50,-59,-57,-55,0,0,0,-72,-72,-138,-74,-51,-15,-8,-8,-8,-8,-8,-8,-8,-8,-8,-8,-189,-8,-8,-8,-8,-8,-16,0,0,0,0,0,0,0,0,0,0,0,0,0,0,0,0,0,0,0,0,0,0,0,0,0,0]} 1. e4 {[%emt 0:00:06]} e5 {[%emt 0:00:24]} 2. Nf3 {[%emt 0:00:03]} Nc6 {[%emt 0:00:01]} 3. Bc4 {[%emt 0:00:02]} Bc5 {[%emt 0:00:12]} 4. O-O {[%emt 0:00:06]} Nf6 {[%emt 0:00:04]} 5. d3 {[%emt 0:00:01]} h6 {[%emt 0:00:39]} 6. c3 {[%emt 0:00:04]} d6 {[%emt 0:00:03] 6...d6 scores better than 6...0-0.} 7. Re1 {[%emt 0:00:18]} (7. b4 $5 Bb6 $8 8. a4 $11) 7... O-O {[%emt 0:00:56] C54: Giuoco Piano: 4 c3 Nf6, main lines with 5 d4 and 5 d3.} 8. Nbd2 {[%emt 0:00:03]} Bb6 {[%emt 0:00:59]} 9. a4 {[%emt 0:00:24]} a5 {[%emt 0:00:45]} 10. Nf1 {[%emt 0:00:18]} Ne7 {[%emt 0:02:03] [#]} 11. d4 $146 {[%emt 0:01:17]} ({Predecessor:} 11. Ng3 Ng6 12. h3 c6 13. Bb3 d5 14. exd5 Nxd5 15. Nh5 Re8 16. Qd2 Bf5 17. Nxg7 Kxg7 18. Qxh6+ {1-0 Chigaev,M (2588)-Nakamura,H (2736) Titled Tuesday intern op 29th Sept blitz 2020 (6)}) 11... Ng6 {[%emt 0:00:31]} 12. Be3 {[%emt 0:03:02]} exd4 {[%emt 0:01:44]} 13. Bxd4 {[%emt 0:00:00]} Bxd4 {[%emt 0:00:06]} 14. Qxd4 {[%emt 0:00:05]} Re8 {[%emt 0:02:20]} 15. h3 {[%emt 0:00:47]} Ne5 {[%emt 0:00:39]} 16. Nxe5 {[%emt 0:00:37]} dxe5 {[%emt 0:00:01]} 17. Qe3 {[%emt 0:00:01]} Be6 {[%emt 0:00:17]} 18. Red1 {[%emt 0:01:15]} Qe7 {[%emt 0:00:04]} 19. Bxe6 {[%emt 0:00:01]} Qxe6 {[%emt 0:00:01]} 20. Ng3 {[%emt 0:00:01]} Qc6 {[%emt 0:01:05]} 21. f3 {[%emt 0:00:18]} Kh7 {[%emt 0:00:20]} 22. Nf5 {[%emt 0:00:09]} Rad8 {[%emt 0:00:01]} 23. Rd2 {[%emt 0:01:30]} Rd7 {[%emt 0:00:47]} 24. b4 {[%emt 0:02:15]} Red8 {[%emt 0:00:03]} 25. Rxd7 {[%emt 0:00:03]} Rxd7 {[%emt 0:00:01]} 26. bxa5 {[%emt 0:00:01]} Nh5 {[%emt 0:00:15]} 27. Kh2 {[%emt 0:01:14]} Nf4 {[%emt 0:00:15]} 28. Qe1 {[%emt 0:00:03]} Rd3 {[%emt 0:00:55]} (28... Qc5 $15) 29. Rd1 {[%emt 0:01:04]} ({Wrong is} 29. Qg3 $2 g6 30. Ne7 Qxc3 $19) (29. Ne3 {simplifies} Qxc3 30. Qxc3 Rxc3 31. Nd5) 29... Rxc3 {[%emt 0:00:28]} 30. Ne7 $1 {[%emt 0:00:02]} Qc5 {[%emt 0:00:23]} 31. Nd5 $1 {[%emt 0:00:02]} Rc2 {[%emt 0:00:05]} 32. Nxf4 {[%emt 0:00:09]} exf4 $40 {[%emt 0:00:00][%mdl 4224] Endgame KQR-KQR. Black is up to no good.} 33. e5 {[%emt 0:00:38]} Qe3 {[%emt 0:00:05]} 34. Qxe3 {[%emt 0:00:37]} fxe3 {[%emt 0:00:02] KR-KR} 35. Re1 {[%emt 0:00:04]} e2 {[%emt 0:00:03]} 36. f4 {[%emt 0:00:01]} Ra2 {[%emt 0:00:05]} 37. g4 {[%emt 0:00:06]} Rxa4 {[%emt 0:00:02]} (37... g6 $15) 38. Rxe2 $11 {[%emt 0:00:01]} Rxa5 {[%emt 0:00:05]} 39. f5 {[%emt 0:00:05]} (39. Rd2 $1 $11) 39... Kg8 $17 {[%emt 0:00:01]} 40. e6 {[%emt 0:00:04]} (40. Rb2 $142) 40... fxe6 {[%emt 0:00:03]} ({Black should try} 40... Kf8 {Strongly threatening ...c5.} 41. Rc2 c5 42. exf7 Kxf7) 41. fxe6 {[%emt 0:00:00] [#] aiming for e7.} Kf8 {[%emt 0:00:07] White must now prevent ...Ke7.} 42. Rf2+ {[%emt 0:00:05]} Ke8 {[%emt 0:00:01] Hoping for ...Rc5.} 43. Rf7 {[%emt 0:00:01]} Rc5 {[%emt 0:00:03]} 44. Rxg7 {[%emt 0:00:02]} b5 {[%emt 0:00:01]} 45. h4 {[%emt 0:00:05]} b4 {[%emt 0:00:01]} 46. Kg3 $1 {[%emt 0:00:04]} b3 {[%emt 0:00:07] [#] Threatens to win with ...c6.} 47. Rg8+ {[%emt 0:00:01]} Ke7 {[%emt 0:00:01]} 48. Rb8 {[%emt 0:00:00] The position is equal.} Rc3+ {[%emt 0:00:01]} 49. Kf4 {[%emt 0:00:00]} Kxe6 {[%emt 0:00:00] ...c5 is the strong threat.} 50. g5 $1 {[%emt 0:00:03]} hxg5+ {[%emt 0:00:06]} 51. hxg5 {[%emt 0:00:00]} Kf7 {[%emt 0:00:08]} 52. Kf5 {[%emt 0:00:03]} Rf3+ {[%emt 0:00:03]} 53. Ke4 {[%emt 0:00:02]} Rg3 {[%emt 0:00:02]} 54. Rb7 {[%emt 0:00:11]} Rxg5 {[%emt 0:00:06]} 55. Rxc7+ {[%emt 0:00:03]} Ke6 {[%emt 0:00:00]} 56. Rc6+ {[%emt 0:00:02]} Kd7 {[%emt 0:00:02]} 57. Rb6 {[%emt 0:00:00]} Rg3 {[%emt 0:00:00] And now ...Kc7 would win.} 58. Kd5 {[%emt 0:00:09]} Kc7 {[%emt 0:00:01]} 59. Rb4 {[%emt 0:00:01]} Rc3 {[%emt 0:00:05]} 60. Kd4 {[%emt 0:00:01]} Rh3 {[%emt 0:00:00] ( -> ...Rh4+)} 61. Kc4 {[%emt 0:00:01]} Kc6 {[%emt 0:00:01]} 62. Rxb3 {[%emt 0:00:01]} Rxb3 {[%emt 0:00:00]} 63. Kxb3 {[%emt 0:00:00] Weighted Error Value: White=0.07 (flawless) /Black=0.07 (flawless)} 1/2-1/2

[Event "AI Cup Div-2 2023"]
[Site "Online"]
[Date "2023.09.26"]
[Round "2.1"]
[White "Fedoseev, Vladimir"]
[Black "Keymer, Vincent"]
[Result "1-0"]
[ECO "E46"]
[WhiteElo "2683"]
[BlackElo "2717"]
[Annotator "TA"]
[PlyCount "149"]
[EventDate "2023.09.18"]
[EventType "k.o."]
[EventCountry "NET"]
[SourceTitle "playchess.com"]
[Source "ChessBase"]
[SourceQuality "1"]
[TimeControl "900+3"]

{[%evp 9,149,2,0,11,1,0,0,0,0,0,0,0,0,0,0,-33,-24,-29,-31,-18,-14,-31,-30,-46,-29,-35,0,-3,-2,0,12,5,77,0,0,0,1,-42,-50,-44,23,0,0,0,0,0,403,449,442,442,450,442,483,485,489,489,489,489,463,489,489,489,650,639,597,489,539,486,478,454,1069,1431,524,524,12821,12823,12823,12821,12819,12818,12655,3843,12833,12827,12834,12825,12835,5716,4010,9,9,9,9,0,9,0,0,0,0,0,0,0,0,0,27999,27999,27999,27999,27999,27999,27999,27999,27999,27999,27999,27999,27999,27999,27999,27999,27999,27999,27999,27999,27999,27999,27999,27999,27999,27999,27999,27999,27999,27999,27999,27999,27999,27999,27999,27999,27999,27999]} 1. d4 {[%emt 0:00:06]} Nf6 {[%emt 0:00:05]} 2. c4 {[%emt 0:00:02]} e6 {[%emt 0:00:04]} 3. Nc3 {[%emt 0:00:03]} Bb4 {[%emt 0:00:03]} 4. e3 {[%emt 0:00:03]} O-O {[%emt 0:00:06]} 5. Nge2 {[%emt 0:00:01]} Re8 {[%emt 0:00:07]} 6. Ng3 {[%emt 0:00:02] E46: Nimzo-Indian: Rubinstein: 4 e3 0-0 5 Ne2 without early Bd3.} d5 {[%emt 0:00:12]} 7. Be2 {[%emt 0:00:04]} b6 {[%emt 0:00:27]} 8. O-O {[%emt 0:00:11] The position is equal.} Bb7 {[%emt 0:00:09]} 9. a3 {[%emt 0:00:58]} Bf8 {[%emt 0:01:31]} 10. b4 {[%emt 0:00:26] [#]} dxc4 $146 {[%emt 0:01:36]} ({Predecessor:} 10... Nbd7 11. Qb3 c6 12. Rd1 a5 13. Bd2 axb4 14. axb4 Qe7 15. cxd5 exd5 16. Qc2 g6 {½-½ Aleksandrov,A (2577)-Le,Q (2708) FIDE World Cup 2019 (1.2)}) 11. Bxc4 {[%emt 0:00:33]} c5 {[%emt 0:01:52]} 12. bxc5 {[%emt 0:00:16]} bxc5 {[%emt 0:00:02]} 13. dxc5 {[%emt 0:01:19]} Nbd7 {[%emt 0:00:39]} 14. Bb2 {[%emt 0:01:38]} Nxc5 {[%emt 0:00:38]} 15. Qe2 {[%emt 0:00:07]} Qb6 {[%emt 0:01:19]} 16. Rab1 {[%emt 0:00:25]} Red8 {[%emt 0:00:45]} 17. Nb5 {[%emt 0:01:27]} Be7 {[%emt 0:01:04]} (17... Nfe4 $5 {[%cal Rd8d2]} 18. Bd4 Rac8 $11) 18. Be5 {[%emt 0:01:07] And now Nd4 would win.} Qc6 {[%emt 0:01:06][%csl Gb7][%cal Rc6g2]} 19. f4 {[%emt 0:00:55] Active counter play!} a6 {[%emt 0:01:52]} 20. Nd4 {[%emt 0:00:04]} Qe8 {[%emt 0:00:00] [#]} (20... Qd7 $11) 21. f5 {[%emt 0:00:10]} (21. Rxb7 $1 $16 Nxb7 22. f5) 21... Bd5 $11 {[%emt 0:00:01]} 22. fxe6 {[%emt 0:00:31]} fxe6 {[%emt 0:00:04]} 23. e4 {[%emt 0:00:33]} Bxc4 {[%emt 0:00:22]} 24. Qxc4 {[%emt 0:00:04]} Rac8 {[%emt 0:00:04]} (24... Ng4 $15 25. Bf4 (25. Nxe6 $2 Nxe5 26. Qa2 Nxe6 $19) (25. Bxg7 $2 Kxg7 26. h3 Ne5 $19) 25... Kh8) 25. Ngf5 $36 {[%emt 0:00:22][%mdl 2048] White is pushing.} (25. Nxe6 $2 Qf7 26. Bxf6 gxf6 $17) (25. Ndf5 $5) 25... Kh8 {[%emt 0:00:21]} 26. Nxg7 {[%emt 0:01:21]} Kxg7 {[%emt 0:00:03]} 27. Rb6 {[%emt 0:00:14] Hoping for Rxe6.} (27. Nxe6+ $2 Nxe6 28. Qe2 Rc6 $19) 27... Qg6 $2 {[%emt 0:00:49][%mdl 8192]} (27... Ncd7 $11 {and Black stays safe.} 28. Qxe6 (28. Nxe6+ Kh8 $17) 28... Nxe5 29. Qxe5 Bc5 30. Qxf6+ Kg8 31. Qg5+ Kh8 32. Qf6+ (32. Rxa6 $2 Bxd4+ 33. Kh1 Qxe4 $19) 32... Kg8 33. Qg5+ Kh8 34. Qf6+ (34. Rxa6 $2 Bxd4+ 35. Kh1 Qxe4 $19) 34... Kg8) 28. Rxe6 {[%emt 0:01:05]} Nxe6 {[%emt 0:00:44]} 29. Qxe6 {[%emt 0:00:04]} Qf7 {[%emt 0:00:01] aiming for ...Qxe6.} 30. Nf5+ {[%emt 0:00:28]} (30. Qxa6 Kh8 $11) 30... Kf8 {[%emt 0:00:01]} 31. Qxe7+ {[%emt 0:00:09][%mdl 64] Remove Defender} (31. Qxa6 Bc5+ $15) 31... Qxe7 {[%emt 0:00:01]} 32. Nxe7 {[%emt 0:00:01]} Kxe7 {[%emt 0:00:00]} 33. Bxf6+ {[%emt 0:00:01]} (33. Rxf6 $2 {too greedy.} Rd2 34. h3 Rcc2 $19) 33... Ke6 {[%emt 0:00:09] Threatens to win with ...Rd3.} 34. Bxd8 {[%emt 0:00:00]} Rxd8 $18 {[%emt 0:00:01][%mdl 4096] Endgame KR-KR} 35. Rf5 {[%emt 0:00:05]} Rd1+ {[%emt 0:00:10]} 36. Kf2 {[%emt 0:00:02]} Rd2+ {[%emt 0:00:01]} 37. Kf1 {[%emt 0:00:03]} Rd1+ {[%emt 0:00:13]} 38. Ke2 {[%emt 0:00:01]} Rd4 {[%emt 0:00:01]} 39. Ra5 {[%emt 0:00:09]} Rxe4+ {[%emt 0:00:01]} (39... Rd6 $142 40. h4 Ke7) 40. Kf3 {[%emt 0:00:00]} Rc4 {[%emt 0:00:01]} 41. Rxa6+ {[%emt 0:00:01]} Kf5 {[%emt 0:00:00] [#]} 42. g4+ $1 {[%emt 0:00:08]} Kg5 {[%emt 0:00:07]} (42... Ke5 43. Ra5+) 43. Ra5+ {[%emt 0:00:02]} Kg6 {[%emt 0:00:01]} 44. Kg3 {[%emt 0:00:02]} Rc6 {[%emt 0:00:11]} 45. a4 {[%emt 0:00:03]} h6 {[%emt 0:00:03]} 46. Kh4 {[%emt 0:00:03]} Rd6 {[%emt 0:00:03]} 47. h3 {[%emt 0:00:05]} Rd3 {[%emt 0:00:03]} 48. Ra6+ {[%emt 0:00:07]} (48. Rb5 $142 Ra3 49. a5) 48... Kg7 {[%emt 0:00:01]} 49. a5 $2 {[%emt 0:00:07]} (49. Ra7+ $18 Kg6 50. a5) 49... Ra3 $11 {[%emt 0:00:04]} 50. Ra8 {[%emt 0:00:03] Ra6 is the strong threat.} Kg6 $1 {[%emt 0:00:03]} 51. Ra6+ {[%emt 0:00:33]} Kg7 $1 {[%emt 0:00:01]} 52. g5 {[%emt 0:00:22]} hxg5+ {[%emt 0:00:07]} 53. Kxg5 $2 {[%emt 0:00:01][%mdl 8192]} (53. Kg4 $11 Kf7 54. Ra8 (54. Kxg5 Rxh3 55. Ra8 Ra3 $18)) 53... Rxh3 {[%emt 0:00:03]} 54. Ra7+ $2 {[%emt 0:00:06][%mdl 8192]} (54. Rg6+ $11 Kf7 55. Rh6) 54... Kf8 {[%emt 0:00:01]} 55. a6 $2 {[%emt 0:00:04][%mdl 8192]} (55. Kf6 $11 Ke8 56. Ke6 Rh6+ 57. Kd5) 55... Ra3 {[%emt 0:00:07]} 56. Ra8+ $2 {[%emt 0:00:07][%mdl 8192]} (56. Kf5 $11 Ke8 57. Ke6) 56... Kf7 $2 {[%emt 0:00:05][%mdl 8192] Black is on the road to losing.} (56... Kg7 $11 57. Kf4 Ra5) 57. Kf5 {[%emt 0:00:03] White mates.} Ra5+ {[%emt 0:00:01]} 58. Ke4 {[%emt 0:00:01]} Kg7 {[%emt 0:00:07]} 59. Kd4 {[%emt 0:00:02]} Kh7 {[%emt 0:00:02]} 60. Kc4 {[%emt 0:00:01]} Kg7 {[%emt 0:00:04]} 61. Kb4 {[%emt 0:00:01]} Ra1 {[%emt 0:00:04]} 62. Kb5 {[%emt 0:00:00]} Rf1 {[%emt 0:00:01]} 63. Rc8 {[%emt 0:00:09]} (63. a7 Rb1+ 64. Kc6 Ra1 $11) 63... Rb1+ {[%emt 0:00:04]} 64. Ka5 {[%emt 0:00:02]} Ra1+ {[%emt 0:00:01]} 65. Kb6 {[%emt 0:00:01]} Rb1+ {[%emt 0:00:00]} 66. Ka7 {[%emt 0:00:12]} Kf6 {[%emt 0:00:03]} 67. Rb8 {[%emt 0:00:06]} Rh1 {[%emt 0:00:02]} 68. Rb6+ {[%emt 0:00:06]} Ke5 {[%emt 0:00:03]} 69. Rc6 {[%emt 0:00:05]} Rb1 {[%emt 0:00:05]} 70. Rb6 {[%emt 0:00:04]} Rh1 {[%emt 0:00:01]} 71. Rb5+ {[%emt 0:00:11]} Kd4 {[%emt 0:00:05]} 72. Kb6 {[%emt 0:00:05]} Kc4 {[%emt 0:00:08]} 73. a7 {[%emt 0:00:07]} Rh6+ {[%emt 0:00:02]} 74. Ka5 {[%emt 0:00:01]} Rh1 {[%emt 0:00:03]} 75. Rb4+ {[%emt 0:00:02] An entertaining game by Fedoseev.   Weighted Error Value: White=0.12 (very precise) /Black=0.35} ({And not} 75. a8=R Ra1+ 76. Kb6 Rxa8 77. Rc5+ Kd4 $11) 1-0